bitfinex/quotes_BTCUSD_20240905
["timestamp","ask_amount","ask_price","bid_price","bid_amount"]
[1725500021735,0.120057,58306.0,58299.0,0.0827]
[1725500021972,0.120054,58307.0,58302.0,0.120063]
[1725500022237,0.120054,58307.0,58303.0,0.1471]
[1725500022446,0.120054,58307.0,58303.0,0.16635253]
[1725500023568,0.120057,58306.0,58303.0,0.16935253]
[1725500023793,0.120059,58305.0,58303.0,0.16935253]
[1725500024224,0.120059,58305.0,58303.0,0.17035253]
[1725500024665,0.12006,58304.0,58303.0,0.16935253]
[1725500025155,0.12006,58304.0,58303.0,0.17235253]
[1725500025375,0.120058,58305.0,58303.0,0.10195253]
[1725500025594,0.12006,58304.0,58303.0,0.10595253]
[1725500025828,0.12006,58304.0,58303.0,0.10995253]
[1725500026285,0.36018,58304.0,58303.0,0.10595253]
[1725500026527,0.36013947,58304.0,58303.0,0.10595253]
[1725500026743,0.36013947,58304.0,58303.0,0.11095253]
[1725500027196,0.36013947,58304.0,58303.0,0.10595253]
[1725500027415,0.36013947,58304.0,58303.0,0.10195253]
[1725500027651,0.36013947,58304.0,58303.0,0.10695253]
[1725500028785,0.36013947,58304.0,58303.0,0.11295253]
[1725500033298,0.84037947,58304.0,58303.0,0.03025253]
[1725500033576,1.20349947,58304.0,58303.0,0.03025253]
[1725500033804,0.96337947,58304.0,58303.0,0.03025253]
[1725500034035,0.96337947,58304.0,58303.0,0.011]
[1725500034491,0.96337947,58304.0,58303.0,0.006]
[1725500034928,0.96337947,58304.0,58303.0,0.009]
[1725500035372,0.96337947,58304.0,58303.0,0.003]
[1725500035810,0.96337947,58304.0,58303.0,0.007]
[1725500039420,0.96337947,58304.0,58303.0,0.02625253]
[1725500039651,0.96337947,58304.0,58303.0,0.007]
[1725500040856,0.96337947,58304.0,58303.0,0.02625253]
[1725500042085,0.72325947,58304.0,58303.0,0.02625253]
[1725500042324,0.72325947,58304.0,58303.0,0.02225253]
[1725500042536,0.72325947,58304.0,58303.0,0.02325253]
[1725500043208,0.72325947,58304.0,58303.0,0.01925253]
[1725500043428,0.72325947,58304.0,58303.0,0.07161675]
[1725500043894,0.72325947,58304.0,58303.0,0.07324675]
[1725500044124,0.72407447,58304.0,58303.0,0.07324675]
[1725500045315,0.72407447,58304.0,58303.0,0.02188253]
[1725500045498,0.72407447,58304.0,58303.0,0.07324675]
[1725500046192,0.83085063,58304.0,58303.0,0.07324675]
[1725500047123,0.83085063,58304.0,58303.0,0.0732906]
[1725500049433,0.83085063,58304.0,58303.0,0.02188253]
[1725500050559,0.83085063,58304.0,58303.0,0.08748253]
[1725500050780,0.83085063,58304.0,58303.0,0.54540998]
[1725500051024,0.83085063,58304.0,58303.0,0.16458888]
[1725500051713,0.83085063,58304.0,58303.0,0.54447281]
[1725500052138,0.83085063,58304.0,58303.0,0.55047281]
[1725500052583,0.83085063,58304.0,58303.0,0.14387588]
[1725500052857,0.83085063,58304.0,58303.0,0.16958888]
[1725500053077,0.83085063,58304.0,58303.0,0.17458888]
[1725500053534,0.83085063,58304.0,58303.0,0.55547296]
[1725500053772,0.83085063,58304.0,58303.0,0.17458888]
[1725500054001,0.83085063,58304.0,58303.0,0.55545734]
[1725500054668,0.72407447,58304.0,58303.0,0.55545734]
[1725500054891,0.123815,58304.0,58303.0,0.55545734]
[1725500055107,0.123815,58304.0,58303.0,0.55946529]
[1725500055108,0.000815,58304.0,58303.0,0.55946529]
[1725500055333,0.000815,58304.0,58303.0,0.80801404]
[1725500055547,0.000815,58304.0,58303.0,0.91965129]
[1725500058906,0.000815,58304.0,58303.0,0.55946529]
[1725500059185,0.383995,58304.0,58303.0,0.55946529]
[1725500059447,0.624115,58304.0,58303.0,0.55946529]
[1725500061056,0.624115,58304.0,58303.0,0.49386529]
[1725500062011,0.383995,58304.0,58303.0,0.49386529]
[1725500062232,0.000815,58304.0,58303.0,0.55576529]
[1725500062452,0.000815,58304.0,58303.0,1.20901016]
[1725500062696,0.000815,58304.0,58303.0,1.60331695]
[1725500063171,0.00041636,58304.0,58303.0,1.44913285]
[1725500064091,0.00041636,58304.0,58303.0,1.44903069]
[1725500064374,0.00041636,58304.0,58303.0,1.70912006]
[1725500064593,0.00041636,58304.0,58303.0,1.94924369]
[1725500065046,0.00041636,58304.0,58303.0,1.96533644]
[1725500065268,0.00041636,58304.0,58303.0,1.94324369]
[1725500065509,0.00041636,58304.0,58303.0,2.44291754]
[1725500065723,0.00041636,58304.0,58303.0,2.45691754]
[1725500065939,0.00041636,58304.0,58303.0,2.46991754]
[1725500066155,0.00041636,58304.0,58303.0,1.93886262]
[1725500066378,0.00041636,58304.0,58303.0,1.69115469]
[1725500067476,0.00041636,58304.0,58303.0,1.69215469]
[1725500067932,0.00041636,58304.0,58303.0,1.70615469]
[1725500068184,0.00041636,58304.0,58303.0,1.72611976]
[1725500068409,0.00041636,58304.0,58303.0,1.71903037]
[1725500068825,0.00041636,58304.0,58303.0,1.70615469]
[1725500069051,0.00041636,58304.0,58303.0,1.7061355]
[1725500071736,0.00041636,58304.0,58303.0,1.2258875]
[1725500071997,0.00041636,58304.0,58303.0,1.4660115]
[1725500072226,0.00041636,58304.0,58303.0,1.2258875]
[1725500072853,0.00041636,58304.0,58303.0,1.4660115]
[1725500073734,0.00041636,58304.0,58303.0,1.7061355]
[1725500074622,0.00041636,58304.0,58303.0,1.70615278]
[1725500076462,0.00041636,58304.0,58303.0,1.10584278]
[1725500077139,0.00041636,58304.0,58303.0,1.25995362]
[1725500077140,0.12047636,58304.0,58303.0,1.25995362]
[1725500077377,0.12047636,58304.0,58303.0,1.26000875]
[1725500077634,0.36059636,58304.0,58303.0,0.5726993]
[1725500077875,0.62371636,58304.0,58303.0,0.4296993]
[1725500078517,0.62371636,58304.0,58303.0,0.55821302]
[1725500078811,0.62371636,58304.0,58303.0,0.54421302]
[1725500079477,0.62371636,58304.0,58303.0,0.4016993]
[1725500079950,0.62371636,58304.0,58303.0,0.4156993]
[1725500080594,0.62371636,58304.0,58303.0,0.4296993]
[1725500082180,0.12047636,58304.0,58303.0,0.4296993]
[1725500083606,0.36059636,58304.0,58303.0,0.4296993]
[1725500083829,0.12047636,58304.0,58303.0,0.4296993]
[1725500084278,0.36059636,58304.0,58303.0,0.4296993]
[1725500085450,0.36059636,58304.0,58303.0,0.5742993]
[1725500085451,0.00041636,58304.0,58303.0,0.5742993]
[1725500085683,0.00041636,58304.0,58303.0,0.9344853]
[1725500085909,0.00041636,58304.0,58303.0,1.81452393]
[1725500085910,0.00021275,58304.0,58303.0,1.81452393]
[1725500086140,0.000814,58309.0,58308.0,0.120052]
[1725500086386,0.000814,58309.0,58308.0,1.42024401]
[1725500086619,0.000814,58309.0,58308.0,1.43948128]
[1725500086840,0.000814,58309.0,58308.0,1.19937728]
[1725500087064,0.000814,58309.0,58308.0,1.07932528]
[1725500087752,0.000814,58309.0,58308.0,1.09332528]
[1725500088678,0.000814,58309.0,58308.0,1.10732528]
[1725500089575,0.000814,58309.0,58308.0,0.57415404]
[1725500095207,0.000814,58309.0,58308.0,1.46741276]
[1725500096550,0.240066,58318.0,58308.0,1.46741276]
[1725500096551,0.120037,58315.0,58311.0,0.120044]
[1725500096781,0.120037,58315.0,58312.0,0.50938682]
[1725500097016,0.120037,58315.0,58314.0,0.10285768]
[1725500097226,0.120037,58315.0,58314.0,0.48367445]
[1725500097449,0.24007,58317.0,58314.0,0.44451677]
[1725500097711,0.120036,58316.0,58315.0,0.48368028]
[1725500098172,0.120036,58316.0,58315.0,0.50289619]
[1725500098839,0.120036,58316.0,58315.0,0.58459619]
[1725500099101,0.120036,58316.0,58315.0,0.59359619]
[1725500099343,0.120036,58316.0,58315.0,0.10991591]
[1725500099559,0.120036,58316.0,58315.0,0.59355929]
[1725500100518,0.120036,58316.0,58315.0,0.49416752]
[1725500100519,0.600178,58316.0,58315.0,0.49416752]
[1725500100752,0.360107,58316.0,58315.0,0.49418896]
[1725500100971,0.360107,58316.0,58315.0,0.49418547]
[1725500101224,0.417307,58316.0,58315.0,0.03621591]
[1725500101475,1.101949,58316.0,58315.0,0.03621591]
[1725500101696,1.101949,58316.0,58315.0,0.017]
[1725500101924,1.34202,58316.0,58315.0,0.017]
[1725500102403,1.34202,58316.0,58315.0,0.008]
[1725500102404,1.102764,58316.0,58315.0,0.008]
[1725500102619,1.102764,58316.0,58315.0,0.01]
[1725500103563,1.102764,58316.0,58315.0,0.002]
[1725500103783,1.342835,58316.0,58315.0,0.002]
[1725500104188,1.342835,58316.0,58310.0,0.0514583]
[1725500104189,0.657427,58311.0,58310.0,0.0514583]
[1725500104435,0.360144,58310.0,58309.0,0.0514583]
[1725500104652,1.10712625,58310.0,58309.0,0.0514583]
[1725500104881,1.13012625,58310.0,58309.0,0.0514583]
[1725500105580,1.13012625,58310.0,58307.0,0.0514583]
[1725500105581,0.60026,58308.0,58307.0,0.0514583]
[1725500105792,0.62326,58308.0,58307.0,0.0514583]
[1725500106010,0.863364,58308.0,58307.0,0.0514583]
[1725500106713,0.62326,58308.0,58307.0,0.38086936]
[1725500107131,0.62326,58308.0,58307.0,0.40010968]
[1725500107358,0.62326,58308.0,58307.0,0.41010968]
[1725500107795,0.62326,58308.0,58307.0,0.48732066]
[1725500108045,0.863364,58308.0,58307.0,0.48731989]
[1725500108267,0.88029232,58308.0,58307.0,0.48731989]
[1725500108481,0.88029232,58308.0,58307.0,0.04024032]
[1725500108721,1.27759632,58308.0,58307.0,0.04024032]
[1725500109159,1.27759632,58308.0,58307.0,0.021]
[1725500109388,1.27759632,58308.0,58307.0,0.01]
[1725500109822,1.080522,58305.0,58304.0,0.00163]
[1725500110048,1.52751225,58305.0,58304.0,0.00163]
[1725500111256,1.52751225,58305.0,58304.0,0.00963]
[1725500111934,1.23019625,58305.0,58304.0,0.00963]
[1725500112166,1.23019625,58305.0,58304.0,0.01863]
[1725500112610,1.23019625,58305.0,58304.0,0.00963]
[1725500112849,1.23019625,58305.0,58304.0,0.02887948]
[1725500112850,1.23219625,58305.0,58304.0,0.02887948]
[1725500113075,1.23219625,58305.0,58304.0,0.00163]
[1725500113300,1.23419625,58305.0,58304.0,0.02087948]
[1725500113524,1.23419625,58305.0,58304.0,0.00163]
[1725500113751,1.23419625,58305.0,58304.0,0.02087948]
[1725500113973,1.23619625,58305.0,58304.0,0.02087948]
[1725500114699,1.23419625,58305.0,58304.0,0.02087948]
[1725500114927,1.23519625,58305.0,58304.0,0.02087948]
[1725500115146,1.23519625,58305.0,58304.0,0.00163]
[1725500115876,1.23419625,58305.0,58304.0,0.00163]
[1725500116103,1.23019625,58305.0,58304.0,0.00163]
[1725500116323,1.23219625,58305.0,58304.0,0.00163]
[1725500116542,1.23019625,58305.0,58304.0,0.00163]
[1725500117023,1.23019625,58305.0,58304.0,0.00263]
[1725500118591,1.23019625,58305.0,58304.0,0.00463]
[1725500119251,1.55241225,58305.0,58304.0,0.00463]
[1725500119480,1.60601225,58305.0,58304.0,0.00463]
[1725500120127,1.60601225,58305.0,58304.0,0.00163]
[1725500120559,1.60801225,58305.0,58304.0,0.00163]
[1725500120816,1.60601225,58305.0,58304.0,0.00163]
[1725500121067,1.52391225,58305.0,58304.0,0.00163]
[1725500121265,1.52591225,58305.0,58304.0,0.00163]
[1725500121482,1.52691225,58305.0,58304.0,0.00163]
[1725500121927,1.52591225,58305.0,58304.0,0.00163]
[1725500122185,1.52791225,58305.0,58304.0,0.00163]
[1725500122397,1.53091225,58305.0,58304.0,0.00163]
[1725500122855,1.53091225,58305.0,58288.0,0.10281969]
[1725500122856,0.002,58297.0,58289.0,0.05140984]
[1725500123081,0.26679025,58290.0,58287.0,0.52650515]
[1725500123337,0.120103,58283.0,58282.0,0.05140984]
[1725500123563,0.120103,58283.0,58281.0,0.19120984]
[1725500123564,0.360316,58282.0,58281.0,0.19120984]
[1725500123786,0.600527,58282.0,58281.0,0.19120984]
[1725500123998,0.863738,58282.0,58281.0,0.1398]
[1725500124230,0.863738,58282.0,58278.0,0.07711477]
[1725500124231,0.963738,58282.0,58278.0,0.05140984]
[1725500124458,0.86374519,58279.0,58278.0,0.11490984]
[1725500124708,0.88674519,58279.0,58278.0,0.0635]
[1725500126280,0.88774519,58279.0,58278.0,0.0775]
[1725500126713,0.88774519,58279.0,58278.0,0.0915]
[1725500127142,0.88774519,58279.0,58278.0,0.0775]
[1725500127353,0.88774519,58279.0,58278.0,0.0915]
[1725500127354,0.88874519,58279.0,58278.0,0.0915]
[1725500137575,0.88874519,58279.0,58278.0,0.09313]
[1725500139554,0.62195494,58279.0,58278.0,0.09313]
[1725500140918,0.62195494,58279.0,58278.0,0.02963]
[1725500140919,0.86217794,58279.0,58278.0,0.02963]
[1725500141180,1.20240094,58279.0,58278.0,0.02963]
[1725500141825,1.20140094,58279.0,58278.0,0.01563]
[1725500142260,1.20240094,58279.0,58278.0,0.02763]
[1725500142707,1.20140094,58279.0,58278.0,0.01563]
[1725500142924,1.20140094,58279.0,58278.0,0.00163]
[1725500142925,1.20040094,58279.0,58278.0,0.00163]
[1725500143156,1.38200138,58279.0,58278.0,0.00163]
[1725500143372,1.38200138,58279.0,58278.0,0.00663]
[1725500143578,1.38200138,58279.0,58278.0,0.01263]
[1725500144025,1.64929997,58279.0,58278.0,0.01263]
[1725500144237,1.64929997,58279.0,58278.0,0.00763]
[1725500144457,1.65129997,58279.0,58278.0,0.00963]
[1725500144682,1.60959953,58279.0,58278.0,0.00963]
[1725500144894,1.60959953,58279.0,58278.0,0.00363]
[1725500145372,1.84782253,58279.0,58278.0,0.00763]
[1725500145823,1.84982253,58279.0,58278.0,0.00763]
[1725500146676,1.60959953,58279.0,58278.0,0.00763]
[1725500148966,1.25620094,58279.0,58278.0,0.00763]
[1725500149192,1.52349953,58279.0,58278.0,0.00763]
[1725500149647,1.52549953,58279.0,58278.0,0.00763]
[1725500149869,1.52431553,58279.0,58278.0,0.00763]
[1725500150344,1.52631553,58279.0,58278.0,0.00763]
[1725500150775,1.25901694,58279.0,58278.0,0.00763]
[1725500151004,1.52431553,58279.0,58278.0,0.00763]
[1725500152161,1.53194553,58279.0,58278.0,0.00763]
[1725500153299,1.55885415,58279.0,58278.0,0.00763]
[1725500154015,1.56085415,58279.0,58278.0,0.00763]
[1725500154243,1.26283115,58279.0,58278.0,0.00763]
[1725500154694,1.50505415,58279.0,58278.0,0.00763]
[1725500155416,1.64035415,58279.0,58278.0,0.00763]
[1725500156307,1.61344553,58279.0,58278.0,0.00163]
[1725500156585,1.61744553,58279.0,58278.0,0.00163]
[1725500157304,1.62344553,58279.0,58278.0,0.00163]
[1725500157543,1.61744553,58279.0,58278.0,0.00163]
[1725500157772,1.61344553,58279.0,58278.0,0.00163]
[1725500158006,1.26464694,58279.0,58278.0,0.00163]
[1725500158234,1.53594553,58279.0,58278.0,0.00163]
[1725500158475,1.53594553,58279.0,58276.0,0.001632]
[1725500158476,1.093039,58277.0,58276.0,0.001632]
[1725500158712,1.38907,58277.0,58276.0,0.001632]
[1725500158940,1.093062,58276.0,58275.0,0.001632]
[1725500159147,1.67939659,58276.0,58275.0,0.001632]
[1725500159383,1.8063096,58276.0,58275.0,0.001632]
[1725500159601,1.53901101,58276.0,58275.0,0.001632]
[1725500160069,1.522098,58276.0,58275.0,0.001632]
[1725500160308,1.70765826,58276.0,58275.0,0.001632]
[1725500160543,1.71265826,58276.0,58275.0,0.001632]
[1725500160768,1.537098,58276.0,58275.0,0.001632]
[1725500161219,1.80439659,58276.0,58275.0,0.001632]
[1725500161429,1.540098,58276.0,58275.0,0.001632]
[1725500161684,1.80739659,58276.0,58275.0,0.001632]
[1725500162345,1.540098,58276.0,58275.0,0.001632]
[1725500162809,1.279862,58276.0,58275.0,0.001632]
[1725500163031,1.214062,58276.0,58275.0,0.001632]
[1725500163279,1.224062,58276.0,58275.0,0.001632]
[1725500163953,1.19815386,58276.0,58275.0,0.001632]
[1725500164196,1.46545245,58276.0,58275.0,0.001632]
[1725500165335,1.45545245,58276.0,58275.0,0.001632]
[1725500165520,1.45545245,58276.0,58275.0,0.151532]
[1725500165521,1.09221645,58276.0,58275.0,0.151532]
[1725500165772,1.09221645,58276.0,58275.0,0.001632]
[1725500165773,1.13878021,58276.0,58275.0,0.001632]
[1725500166861,1.26178021,58276.0,58275.0,0.001632]
[1725500167735,1.21521645,58276.0,58275.0,0.001632]
[1725500168010,1.45545245,58276.0,58275.0,0.001632]
[1725500171595,1.51125245,58276.0,58275.0,0.001632]
[1725500172259,1.51125245,58276.0,58267.0,0.001632]
[1725500172260,1.08121,58268.0,58267.0,0.001632]
[1725500172467,1.37150859,58268.0,58267.0,0.001632]
[1725500172672,1.52410859,58268.0,58267.0,0.02208954]
[1725500172919,1.52410859,58268.0,58267.0,0.001632]
[1725500173607,1.47150859,58268.0,58267.0,0.001632]
[1725500173818,1.47150859,58268.0,58267.0,0.006632]
[1725500174515,1.47250859,58268.0,58267.0,0.012632]
[1725500176945,1.35237459,58268.0,58267.0,0.012632]
[1725500177845,1.47250859,58268.0,58267.0,0.012632]
[1725500178534,1.71277759,58268.0,58267.0,0.012632]
[1725500178961,1.72948159,58268.0,58267.0,0.012632]
[1725500179394,1.72948159,58268.0,58254.0,0.00085831]
[1725500179395,1.5718,58266.0,58265.0,0.47859]
[1725500179629,0.370427,58264.0,58256.0,0.0653]
[1725500179851,0.973997,58264.0,58256.0,0.0653]
[1725500180298,1.454567,58264.0,58256.0,0.0653]
[1725500181449,1.455567,58264.0,58256.0,0.0653]
[1725500181673,1.205282,58264.0,58256.0,0.0653]
[1725500181935,1.207282,58264.0,58256.0,0.0653]
[1725500186944,1.207282,58264.0,58263.0,0.138728]
[1725500190073,1.08714,58264.0,58263.0,0.138728]
[1725500190530,1.207282,58264.0,58263.0,0.138728]
[1725500191437,1.206282,58264.0,58263.0,0.138728]
[1725500191651,1.207282,58264.0,58263.0,0.138728]
[1725500191873,0.966997,58264.0,58263.0,0.138728]
[1725500192335,0.965997,58264.0,58263.0,0.138728]
[1725500192568,0.966997,58264.0,58263.0,0.138728]
[1725500193061,0.966997,58264.0,58263.0,0.140728]
[1725500193062,0.363427,58264.0,58263.0,0.140728]
[1725500193278,0.241285,58264.0,58263.0,0.140728]
[1725500193495,0.243285,58264.0,58263.0,0.21262316]
[1725500193711,0.363427,58264.0,58263.0,0.21262316]
[1725500194150,0.362427,58264.0,58263.0,0.21262316]
[1725500194369,0.363427,58264.0,58263.0,0.21262316]
[1725500194584,0.463427,58264.0,58263.0,0.21062316]
[1725500194826,0.703712,58264.0,58263.0,0.21062316]
[1725500195056,0.460427,58264.0,58263.0,0.15920021]
[1725500195280,0.461427,58264.0,58263.0,0.21365433]
[1725500195720,0.460427,58264.0,58263.0,0.16220021]
[1725500195940,0.460427,58264.0,58263.0,0.16420021]
[1725500196158,0.460427,58264.0,58263.0,0.21565242]
[1725500196816,0.460427,58264.0,58263.0,0.16420021]
[1725500197065,0.460427,58264.0,58263.0,0.21565426]
[1725500197724,0.700712,58264.0,58263.0,0.21565426]
[1725500197948,0.701528,58264.0,58263.0,0.21565426]
[1725500199774,0.701528,58264.0,58263.0,0.16420021]
[1725500200206,0.964813,58264.0,58263.0,0.16420021]
[1725500201053,0.964813,58264.0,58263.0,0.140728]
[1725500201266,0.964813,58264.0,58263.0,0.141728]
[1725500201471,0.964813,58264.0,58263.0,0.16020021]
[1725500201898,0.964813,58264.0,58263.0,0.15920021]
[1725500202157,0.964813,58264.0,58263.0,0.16020021]
[1725500208457,0.964813,58264.0,58263.0,0.21166563]
[1725500209707,0.964813,58264.0,58263.0,0.16020021]
[1725500210996,0.964813,58264.0,58263.0,0.23739834]
[1725500211668,0.724528,58264.0,58263.0,0.16020021]
[1725500211887,0.724528,58264.0,58263.0,0.61853454]
[1725500211888,0.701528,58264.0,58263.0,0.61853454]
[1725500212108,0.701528,58264.0,58263.0,0.54133641]
[1725500213711,0.701528,58264.0,58263.0,0.54033641]
[1725500213712,0.964813,58264.0,58263.0,0.54033641]
[1725500213924,1.01137676,58264.0,58263.0,0.15920021]
[1725500214128,1.01137676,58264.0,58263.0,0.02310021]
[1725500214129,1.25166176,58264.0,58263.0,0.02310021]
[1725500214337,1.01137676,58264.0,58263.0,0.02410021]
[1725500214540,1.01137676,58264.0,58263.0,0.002628]
[1725500214750,0.964813,58264.0,58263.0,0.002628]
[1725500214964,0.965813,58264.0,58263.0,0.002628]
[1725500215398,1.258698,58264.0,58263.0,0.002628]
[1725500215608,1.258698,58264.0,58263.0,0.001628]
[1725500216045,1.52809407,58264.0,58263.0,0.001628]
[1725500219795,1.47549407,58264.0,58263.0,0.001628]
[1725500223061,1.47210874,58264.0,58263.0,0.001628]
[1725500225645,1.23182374,58264.0,58263.0,0.143328]
[1725500226066,1.47210874,58264.0,58263.0,0.143328]
[1725500227101,1.23182374,58264.0,58263.0,0.143328]
[1725500227314,1.3309875,58264.0,58263.0,0.001628]
[1725500227535,1.23182374,58264.0,58263.0,0.001628]
[1725500227759,1.47210874,58264.0,58263.0,0.001628]
[1725500228680,1.47210874,58264.0,58263.0,0.148028]
[1725500229362,0.96442767,58264.0,58263.0,0.148028]
[1725500229820,0.96442767,58264.0,58263.0,0.150028]
[1725500229821,0.60114267,58264.0,58263.0,0.150028]
[1725500230031,0.36085767,58264.0,58263.0,0.150028]
[1725500230245,0.36085767,58264.0,58263.0,0.22208065]
[1725500230466,0.60114267,58264.0,58263.0,0.22208065]
[1725500231356,0.70114267,58264.0,58263.0,0.22208065]
[1725500232514,0.70114267,58264.0,58263.0,0.24781626]
[1725500232740,0.70114267,58264.0,58263.0,0.62895677]
[1725500232979,0.70114267,58264.0,58263.0,0.55174996]
[1725500233204,0.69814267,58264.0,58263.0,0.55174996]
[1725500233628,0.70014267,58264.0,58263.0,0.56474996]
[1725500233843,0.70014267,58264.0,58263.0,0.56274996]
[1725500234274,0.70014267,58264.0,58263.0,0.56474996]
[1725500234496,0.70014267,58264.0,58263.0,0.56274996]
[1725500235389,0.70014267,58264.0,58263.0,0.56474996]
[1725500237656,0.70014267,58264.0,58263.0,0.6676611]
[1725500239980,0.70014267,58264.0,58263.0,0.66765224]
[1725500240402,0.70014267,58264.0,58263.0,0.66565224]
[1725500241052,0.70014267,58264.0,58263.0,0.56273779]
[1725500241476,0.70014267,58264.0,58263.0,0.66764346]
[1725500241687,0.70014267,58264.0,58263.0,0.56273779]
[1725500242135,0.70014267,58264.0,58263.0,0.66764039]
[1725500242340,0.70014267,58264.0,58263.0,0.66564039]
[1725500242559,0.70014267,58264.0,58263.0,0.66764039]
[1725500242762,0.70014267,58264.0,58263.0,0.66564039]
[1725500244280,0.70014267,58264.0,58263.0,0.66764039]
[1725500246529,0.70014267,58264.0,58263.0,0.56473779]
[1725500248474,0.70014267,58264.0,58263.0,0.66764039]
[1725500249148,0.70014267,58264.0,58263.0,0.6676051]
[1725500249586,0.70014267,58264.0,58263.0,0.66760244]
[1725500250018,0.70014267,58264.0,58263.0,0.56473779]
[1725500251124,0.000816,58268.0,58267.0,0.002]
[1725500251127,0.000816,58268.0,58267.0,0.362409]
[1725500251374,0.000816,58268.0,58267.0,2.04247332]
[1725500251602,0.000815,58276.0,58275.0,0.15]
[1725500251838,0.000815,58276.0,58275.0,0.53112834]
[1725500252064,0.000815,58276.0,58275.0,0.55208019]
[1725500252957,0.001815,58276.0,58275.0,0.56208019]
[1725500253618,0.001815,58276.0,58275.0,0.55208019]
[1725500253833,0.000815,58276.0,58275.0,0.55208019]
[1725500254058,0.001815,58276.0,58275.0,0.56508019]
[1725500254508,0.001815,58276.0,58275.0,0.81342821]
[1725500255212,0.002815,58276.0,58275.0,0.82527771]
[1725500255444,0.002815,58276.0,58275.0,0.9123021]
[1725500255671,0.001815,58276.0,58275.0,1.1525421]
[1725500255893,0.001815,58276.0,58275.0,1.1805421]
[1725500255894,0.003815,58276.0,58275.0,1.1805421]
[1725500256327,0.002815,58276.0,58275.0,1.1665421]
[1725500256543,0.000815,58276.0,58275.0,1.1525421]
[1725500256748,0.000815,58276.0,58275.0,1.1665421]
[1725500256749,0.001815,58276.0,58275.0,1.1665421]
[1725500256957,0.002815,58276.0,58275.0,1.1805421]
[1725500257169,0.001815,58276.0,58275.0,1.1665421]
[1725500257581,0.001815,58276.0,58275.0,1.1805421]
[1725500257797,0.001815,58276.0,58275.0,1.1905421]
[1725500258003,0.001815,58276.0,58275.0,1.45751492]
[1725500259515,0.001815,58276.0,58275.0,1.5854477]
[1725500260212,0.000816,58279.0,58278.0,0.612567]
[1725500260454,0.000816,58279.0,58278.0,1.64785707]
[1725500260667,0.000816,58279.0,58278.0,1.66871346]
[1725500260891,0.000816,58279.0,58278.0,1.82210662]
[1725500261351,0.52650515,58311.0,58303.0,0.002]
[1725500261570,0.120058,58305.0,58304.0,0.0662]
[1725500261829,0.000815,58316.0,58306.0,0.002]
[1725500262065,0.000815,58316.0,58304.0,0.08704556]
[1725500262066,0.000815,58316.0,58315.0,0.002]
[1725500262315,0.000815,58316.0,58315.0,0.00542946]
[1725500262525,0.000815,58316.0,58315.0,0.02623473]
[1725500262750,0.000815,58316.0,58315.0,0.002]
[1725500262958,0.000815,58316.0,58315.0,0.02280527]
[1725500262959,0.12085,58316.0,58315.0,0.02280527]
[1725500263167,0.12085,58316.0,58315.0,0.002]
[1725500263399,0.12085,58316.0,58315.0,0.02280527]
[1725500263697,0.12085,58316.0,58315.0,0.002]
[1725500263914,0.360921,58316.0,58315.0,0.02280527]
[1725500264135,0.360921,58316.0,58315.0,0.002]
[1725500264362,0.360921,58316.0,58315.0,0.02280527]
[1725500264584,0.460921,58316.0,58315.0,0.002]
[1725500264802,0.460921,58316.0,58315.0,0.02280527]
[1725500265024,0.460921,58316.0,58315.0,0.012]
[1725500265248,0.460921,58316.0,58315.0,0.02280527]
[1725500265475,0.461921,58316.0,58315.0,0.03280527]
[1725500265692,0.461921,58316.0,58315.0,0.04180527]
[1725500265913,0.461921,58316.0,58315.0,0.03180527]
[1725500265914,0.22085,58316.0,58315.0,0.03180527]
[1725500266369,0.22185,58316.0,58315.0,0.04180527]
[1725500267032,0.22185,58316.0,58315.0,0.09274642]
[1725500267274,0.001815,58316.0,58315.0,0.63245624]
[1725500267513,0.0245,58320.0,58319.0,0.002]
[1725500267514,0.120029,58320.0,58319.0,0.002]
[1725500267728,0.120029,58320.0,58319.0,0.0828]
[1725500267934,0.120029,58320.0,58319.0,0.10359062]
[1725500268837,0.120029,58320.0,58319.0,0.10959062]
[1725500269278,0.120029,58320.0,58319.0,0.11459062]
[1725500269501,0.220029,58320.0,58319.0,0.11459062]
[1725500269719,0.220845,58320.0,58319.0,0.11459062]
[1725500271728,0.220843,58320.0,58319.0,0.11459062]
[1725500272578,0.220843,58320.0,58319.0,0.16546494]
[1725500273046,0.220843,58320.0,58319.0,0.11459062]
[1725500273256,0.220843,58320.0,58319.0,0.165379]
[1725500273451,0.460897,58320.0,58319.0,0.11459062]
[1725500273720,0.460897,58320.0,58319.0,0.1653786]
[1725500274168,0.460897,58320.0,58319.0,0.11459062]
[1725500274379,0.460897,58320.0,58319.0,0.16536578]
[1725500274588,0.460897,58320.0,58319.0,0.11459062]
[1725500276372,0.19827797,58320.0,58319.0,0.11459062]
[1725500277047,0.55835897,58320.0,58319.0,0.11459062]
[1725500277506,0.31830497,58320.0,58319.0,0.19100234]
[1725500277728,0.31830497,58320.0,58319.0,0.57173432]
[1725500278149,0.31830497,58320.0,58319.0,0.11459062]
[1725500278369,0.41830497,58320.0,58319.0,0.16535706]
[1725500278578,0.41830497,58320.0,58319.0,0.11459062]
[1725500279008,0.41830497,58320.0,58319.0,0.16535514]
[1725500279224,0.41830497,58320.0,58319.0,0.11459062]
[1725500279466,0.89841297,58320.0,58319.0,0.03179062]
[1725500279678,0.92141297,58320.0,58319.0,0.03179062]
[1725500279889,0.92141297,58320.0,58319.0,0.011]
[1725500280386,0.92141297,58320.0,58319.0,0.03179062]
[1725500280601,0.92141297,58320.0,58319.0,0.011]
[1725500281021,0.92141297,58320.0,58319.0,0.02679062]
[1725500281474,0.600157,58318.0,58317.0,0.05076973]
[1725500281694,0.623157,58318.0,58317.0,0.05076973]
[1725500282564,0.86322,58318.0,58317.0,0.05776973]
[1725500282787,0.86322,58318.0,58317.0,0.007]
[1725500283960,0.86322,58318.0,58317.0,0.009]
[1725500284208,0.360094,58318.0,58317.0,0.009]
[1725500284443,0.360094,58318.0,58317.0,0.1547]
[1725500284679,0.360094,58318.0,58317.0,0.23085459]
[1725500285125,0.361094,58318.0,58317.0,0.23885459]
[1725500286051,0.001,58318.0,58317.0,0.23885459]
[1725500286282,0.240052,58321.0,58317.0,0.54345664]
[1725500286518,0.240052,58321.0,58320.0,0.002]
[1725500286519,0.360077,58321.0,58320.0,0.002]
[1725500287227,0.360077,58321.0,58320.0,0.05280387]
[1725500287439,0.360077,58321.0,58320.0,0.45894953]